fUSD/lending_fUSD_20250611
["ID","MTS","AMOUNT","RATE_DAILY","PERIOD"]
[365447313,1749678637874,-1102.91812695,0.00018,2]
[365447314,1749678637918,-1156.95,0.00018,2]
[365447315,1749678637929,-434.50861713,0.00018,2]
[365447316,1749678637940,-2262.87989758,0.00018,2]
[365447317,1749678637977,-279.94,0.00018,2]
[365447484,1749678640014,-2102.79331114,0.00018,2]
[365447485,1749678640029,-263.922,0.00018,2]
[365447508,1749678640246,-14661.30633424,0.00018,2]
[365447510,1749678640256,-204.0,0.00018231,2]
[365447512,1749678640266,-465.61206997,0.00018267,2]
[365447514,1749678640275,-301.63,0.00018365,2]
[365447516,1749678640284,-175.82550321,0.00018365,2]
[365447518,1749678640293,-300.97,0.00018365,2]
[365447520,1749678640302,-300.0,0.00018366,2]
[365447522,1749678640311,-156.43,0.00018367,2]
[365447524,1749678640320,-301.95,0.00018367,2]
[365447526,1749678640330,-301.91,0.00018367,2]
[365447528,1749678640340,-304.45,0.00018367,2]
[365447530,1749678640349,-300.56,0.00018367,2]
[365447532,1749678640358,-305.67,0.00018367,2]
[365447534,1749678640367,-495.0,0.00018367,2]
[365447536,1749678640376,-503.62,0.00018367,2]
[365447538,1749678640385,-300.67,0.00018368,2]
[365447540,1749678640395,-303.72,0.00018368,2]
[365447542,1749678640405,-151.08,0.00018368,2]
[365447544,1749678640414,-302.96,0.00018368,2]
[365447546,1749678640424,-305.96,0.00018368,2]
[365447548,1749678640433,-151.03,0.00018368,2]
[365447550,1749678640442,-302.2,0.00018368,2]
[365447552,1749678640451,-304.84,0.00018368,2]
[365447554,1749678640463,-303.02,0.00018368,2]
[365447556,1749678640473,-301.0,0.00018368,2]
[365447558,1749678640482,-301.17,0.00018368,2]
[365447560,1749678640492,-305.28,0.00018368,2]
[365447562,1749678640502,-304.85,0.00018368,2]
[365447564,1749678640511,-301.23,0.00018368,2]
[365447566,1749678640520,-250.0,0.00018368,2]
[365447568,1749678640530,-305.79,0.00018368,2]
[365447570,1749678640540,-303.69,0.00018369,2]
[365447572,1749678640550,-23900.0,0.00018369,2]
[365447574,1749678640560,-166.21,0.00018439,2]
[365447576,1749678640569,-465.61206995,0.00018484,2]
[365447578,1749678640579,-151.0,0.00018522,2]
[365447580,1749678640588,-1957.856,0.00018522,2]
[365447582,1749678640597,-395.488016,0.00018522,2]
[365447584,1749678640606,-331.07053473,0.00018522,2]
[365447586,1749678640616,-207.4,0.00018522,2]
[365447588,1749678640627,-5262.22,0.00018525,2]
[365447590,1749678640636,-2030.296672,0.00018577,2]
[365447592,1749678640645,-2105.41764886,0.00018632,2]
[365447594,1749678640655,-2183.31810187,0.00018687,2]
[365447596,1749678640664,-465.61206995,0.000187,2]
[365447598,1749678640674,-1632.47592366,0.00018732,2]
[365447600,1749678640684,-2264.10087164,0.00018742,2]
[365447602,1749678640693,-2347.87260389,0.00018797,2]
[365447604,1749678640703,-600.0,0.000188,6]
[365447606,1749678640713,-2434.74389024,0.00018852,2]
[365447608,1749678640722,-1249.89064403,0.00018878,2]
[365447610,1749678640731,-1200.0,0.000189,6]
[365447612,1749678640741,-221.93189137,0.000189,2]
[365447614,1749678640750,-2524.82941417,0.00018907,2]
[365447616,1749678640760,-2618.2481025,0.00018962,2]
[365447618,1749678640769,-528.96834273,0.00018978,2]
[365447620,1749678640778,-6756.7046,0.00018978,2]
[365447622,1749678640788,-227.8361,0.00018978,2]
[365447624,1749678640797,-271.9607,0.00018978,2]
[365447626,1749678640806,-2083.4864,0.00018978,2]
[365447628,1749678640816,-1000.0,0.00018978,2]
[365447630,1749678640825,-2715.12328229,0.00019017,2]
[365447632,1749678640834,-528.96834258,0.00019027,2]
[365447634,1749678640844,-461.31,0.00019041,2]
[365447636,1749678640852,-461.31,0.00019041,2]
[365447638,1749678640861,-1603.09,0.00019041,2]
[365447640,1749678640871,-461.31,0.00019041,2]
[365447642,1749678640880,-921.89,0.00019041,2]
[365447644,1749678640889,-796.98,0.00019041,2]
[365447645,1749678640899,-461.31,0.00019041,2]
[365447648,1749678640908,-1249.85,0.00019042,2]
[365447649,1749678640917,-1078.0,0.00019049,2]
[365447651,1749678640926,-198.7,0.00019068,2]
[365447654,1749678640935,-2595.91720905,0.00019072,2]
[365447656,1749678640944,-528.96834258,0.00019075,2]
[365447657,1749678640954,-3058.86184255,0.00019077,2]
[365447660,1749678640964,-171.49826575,0.00019078,2]
[365447661,1749678640973,-2054.9197663,0.00019078,2]
[365447663,1749678640982,-185.80941388,0.00019078,2]
[365447665,1749678640991,-1000.0,0.00019078,2]
[365447668,1749678641002,-73522.2238,0.00019078,2]
[365447670,1749678641011,-2500.0,0.00019078,2]
[365447672,1749678641020,-2369.1735,0.00019078,2]
[365447673,1749678641029,-528.96834258,0.00019124,2]
[365447675,1749678641038,-500.0,0.00019124,2]
[365447677,1749678641048,-500.0,0.00019124,2]
[365447680,1749678641057,-221.93189134,0.0001915,2]
[365447682,1749678641066,-292.4,0.00019151,2]
[365447683,1749678641075,-792.01,0.00019168,2]
[365447685,1749678641085,-3058.86184255,0.00019168,2]
[365447687,1749678641094,-2054.91976624,0.00019169,2]
[365447689,1749678641103,-528.96834258,0.00019172,2]
[365447692,1749678641112,-520.08763609,0.00019173,2]
[365447694,1749678641122,-500.0,0.00019173,2]
[365447696,1749678641131,-500.0,0.00019173,2]
[365447698,1749678641142,-500.0,0.00019173,2]
[365447700,1749678641153,-500.0,0.00019173,2]
[365447702,1749678641163,-505.02490821,0.00019173,2]
[365447704,1749678641171,-500.0,0.00019173,2]
[365447706,1749678641182,-500.0,0.00019173,2]
[365447708,1749678641191,-500.0,0.00019173,2]
[365447710,1749678641200,-500.0,0.00019173,2]
[365447712,1749678641211,-500.0,0.00019173,2]
[365447714,1749678641220,-280.70051291,0.00019177,2]
[365447716,1749678641230,-648.8193399,0.00019177,2]
[365447718,1749678641240,-160.08510969,0.00019177,2]
[365447720,1749678641249,-480.0,0.00019178,2]
[365447722,1749678641258,-410.0,0.00019178,2]
[365447724,1749678641267,-243.13078287,0.00019178,2]
[365447726,1749678641276,-470.0,0.00019178,2]
[365447728,1749678641286,-470.0,0.00019178,2]
[365447730,1749678641295,-611.07287766,0.00019178,2]
[365447732,1749678641305,-490.0,0.00019178,2]
[365447734,1749678641314,-490.0,0.00019178,2]
[365447736,1749678641323,-450.0,0.00019178,2]
[365447738,1749678641333,-490.0,0.00019178,2]
[365447740,1749678641342,-430.0,0.00019178,2]
[365447742,1749678641351,-490.0,0.00019178,2]
[365447744,1749678641361,-490.0,0.00019178,2]
[365447746,1749678641370,-150.15413755,0.00019178,2]
[365447748,1749678641380,-490.0,0.00019178,2]
[365447750,1749678641390,-490.0,0.00019178,2]
[365447752,1749678641400,-480.0,0.00019178,2]
[365447754,1749678641409,-490.0,0.00019178,2]
[365447756,1749678641419,-490.0,0.00019178,2]
[365447758,1749678641429,-490.0,0.00019178,2]
[365447760,1749678641438,-490.0,0.00019178,2]
[365447762,1749678641447,-490.0,0.00019178,2]
[365447764,1749678641462,-490.0,0.00019178,2]
[365447766,1749678641471,-490.0,0.00019178,2]
[365447768,1749678641480,-490.0,0.00019178,2]
[365447770,1749678641489,-490.0,0.00019178,2]
[365447772,1749678641499,-490.0,0.00019178,2]
[365447774,1749678641508,-490.0,0.00019178,2]
[365447776,1749678641518,-490.0,0.00019178,2]
[365447778,1749678641527,-480.0,0.00019178,2]
[365447780,1749678641535,-490.0,0.00019178,2]
[365447782,1749678641545,-490.0,0.00019178,2]
[365447784,1749678641554,-480.0,0.00019178,2]
[365447786,1749678641563,-490.0,0.00019178,2]
[365447787,1749678641573,-490.0,0.00019178,2]
[365447789,1749678641582,-480.0,0.00019178,2]
[365447791,1749678641591,-481.40614839,0.00019178,2]
[365447793,1749678641600,-480.0,0.00019178,2]
[365447795,1749678641609,-480.0,0.00019178,2]
[365447798,1749678641619,-490.0,0.00019178,2]
[365447799,1749678641628,-420.0,0.00019178,2]
[365447801,1749678641637,-490.0,0.00019178,2]
[365447803,1749678641647,-490.0,0.00019178,2]
[365447806,1749678641656,-490.0,0.00019178,2]
[365447807,1749678641665,-490.0,0.00019178,2]
[365447810,1749678641675,-490.0,0.00019178,2]
[365447812,1749678641684,-490.0,0.00019178,2]
[365447814,1749678641693,-490.0,0.00019178,2]
[365447816,1749678641702,-490.0,0.00019178,2]
[365447818,1749678641713,-490.0,0.00019178,2]
[365447820,1749678641723,-490.0,0.00019178,2]
[365447822,1749678641731,-490.0,0.00019178,2]
[365447824,1749678641740,-420.70389715,0.00019178,2]
[365447825,1749678641749,-490.0,0.00019178,2]
[365447827,1749678641759,-490.0,0.00019178,2]
[365447830,1749678641768,-490.0,0.00019178,2]
[365447831,1749678641777,-490.0,0.00019178,2]
[365447833,1749678641786,-490.0,0.00019178,2]
[365447835,1749678641795,-480.0,0.00019178,2]
[365447837,1749678641804,-490.0,0.00019178,2]
[365447840,1749678641814,-490.0,0.00019178,2]
[365447842,1749678641823,-490.0,0.00019178,2]
[365447844,1749678641832,-490.0,0.00019178,2]
[365447845,1749678641841,-537.62173873,0.00019178,2]
[365447847,1749678641850,-490.0,0.00019178,2]
[365447849,1749678641860,-490.0,0.00019178,2]
[365447851,1749678641869,-480.0,0.00019178,2]
[365447854,1749678641878,-490.0,0.00019178,2]
[365447855,1749678641887,-480.0,0.00019178,2]
[365447858,1749678641896,-343.58740013,0.00019178,2]
[365447859,1749678641906,-490.0,0.00019178,2]
[365447861,1749678641915,-422.8618455,0.00019178,2]
[365447864,1749678641926,-490.0,0.00019178,2]
[365447865,1749678641938,-490.0,0.00019178,2]
[365447867,1749678641952,-490.0,0.00019178,2]
[365447869,1749678641962,-490.0,0.00019178,2]
[365447872,1749678641971,-490.0,0.00019178,2]
[365447874,1749678641980,-501.43875995,0.00019178,2]
[365447876,1749678641990,-490.0,0.00019178,2]
[365447877,1749678641999,-480.0,0.00019178,2]
[365447879,1749678642008,-490.0,0.00019178,2]
[365447881,1749678642017,-490.0,0.00019178,2]
[365447883,1749678642026,-490.0,0.00019178,2]
[365447885,1749678642035,-420.0,0.00019178,2]
[365447887,1749678642044,-230.27866346,0.00019178,2]
[365447889,1749678642053,-490.0,0.00019178,2]
[365447891,1749678642062,-480.0,0.00019178,2]
[365447893,1749678642071,-420.0,0.00019178,2]
[365447895,1749678642080,-480.0,0.00019178,2]
[365447897,1749678642089,-490.0,0.00019178,2]
[365447899,1749678642098,-490.0,0.00019178,2]
[365447901,1749678642107,-490.0,0.00019178,2]
[365447903,1749678642116,-500.0,0.00019178,2]
[365447905,1749678642125,-500.0,0.00019178,2]
[365447906,1749678642135,-480.0,0.00019178,2]
[365447909,1749678642144,-490.0,0.00019178,2]
[365447911,1749678642153,-490.0,0.00019178,2]
[365447912,1749678642162,-490.0,0.00019178,2]
[365447914,1749678642171,-490.0,0.00019178,2]
[365447916,1749678642180,-490.0,0.00019178,2]
[365447918,1749678642189,-490.0,0.00019178,2]
[365447920,1749678642198,-490.0,0.00019178,2]
[365447922,1749678642207,-490.0,0.00019178,2]
[365447924,1749678642218,-490.0,0.00019178,2]
[365447926,1749678642227,-480.0,0.00019178,2]
[365447928,1749678642236,-380.0,0.00019178,2]
[365447930,1749678642245,-490.0,0.00019178,2]
[365447932,1749678642255,-480.0,0.00019178,2]
[365447934,1749678642264,-480.0,0.00019178,2]
[365447937,1749678642282,-490.0,0.00019178,2]
[365447938,1749678642296,-490.0,0.00019178,2]
[365447940,1749678642305,-480.0,0.00019178,2]
[365447942,1749678642314,-490.0,0.00019178,2]
[365447945,1749678642324,-490.0,0.00019178,2]
[365447946,1749678642333,-490.0,0.00019178,2]
[365447948,1749678642342,-421.41303659,0.00019178,2]
[365447950,1749678642352,-490.0,0.00019178,2]
[365447953,1749678642362,-490.0,0.00019178,2]
[365447954,1749678642371,-490.0,0.00019178,2]
[365447956,1749678642385,-490.0,0.00019178,2]
[365447959,1749678642395,-490.0,0.00019178,2]
[365447960,1749678642404,-490.0,0.00019178,2]
[365447962,1749678642413,-490.0,0.00019178,2]
[365447964,1749678642422,-490.0,0.00019178,2]
[365447966,1749678642431,-502.9914117,0.00019178,2]
[365447968,1749678642440,-490.0,0.00019178,2]
[365447970,1749678642449,-490.0,0.00019178,2]
[365447972,1749678642463,-490.0,0.00019178,2]
[365447974,1749678642473,-480.0,0.00019178,2]
[365447975,1749678642481,-490.0,0.00019178,2]
[365447976,1749678642490,-490.0,0.00019178,2]
[365447977,1749678642501,-490.0,0.00019178,2]
[365447978,1749678642510,-365.90291845,0.00019178,2]
[365447979,1749678642518,-490.0,0.00019178,2]
[365447980,1749678642527,-490.0,0.00019178,2]
[365447981,1749678642536,-490.0,0.00019178,2]
[365447982,1749678642545,-490.0,0.00019178,2]
[365447983,1749678642554,-490.0,0.00019178,2]
[365447984,1749678642563,-480.0,0.00019178,2]
[365447986,1749678642572,-490.0,0.00019178,2]
[365447988,1749678642581,-490.0,0.00019178,2]
[365447989,1749678642590,-500.0,0.00019178,2]
[365447991,1749678642599,-500.0,0.00019178,2]
[365447993,1749678642609,-480.0,0.00019178,2]
[365447995,1749678642618,-490.0,0.00019178,2]
[365447997,1749678642627,-420.0,0.00019178,2]
[365447999,1749678642636,-490.0,0.00019178,2]
[365448001,1749678642645,-490.0,0.00019178,2]
[365448003,1749678642654,-490.0,0.00019178,2]
[365448005,1749678642664,-490.0,0.00019178,2]
[365448007,1749678642673,-480.0,0.00019178,2]
[365448009,1749678642682,-490.0,0.00019178,2]
[365448012,1749678642691,-490.0,0.00019178,2]
[365448014,1749678642700,-490.0,0.00019178,2]
[365448016,1749678642710,-490.0,0.00019178,2]
[365448018,1749678642720,-490.0,0.00019178,2]
[365448020,1749678642729,-490.0,0.00019178,2]
[365448022,1749678642738,-490.0,0.00019178,2]
[365448025,1749678642748,-480.0,0.00019178,2]
[365448027,1749678642757,-290.31651313,0.00019178,2]
[365448029,1749678642768,-490.0,0.00019178,2]
[365448031,1749678642777,-490.0,0.00019178,2]
[365448033,1749678642786,-480.0,0.00019178,2]
[365448035,1749678642795,-490.0,0.00019178,2]
[365448037,1749678642805,-480.0,0.00019178,2]
[365448039,1749678642814,-272.41734002,0.00019178,2]
[365448041,1749678642823,-490.0,0.00019178,2]
[365448044,1749678642833,-490.0,0.00019178,2]
[365448046,1749678642842,-490.0,0.00019178,2]
[365448048,1749678642851,-480.0,0.00019178,2]
[365448050,1749678642860,-480.0,0.00019178,2]
[365448052,1749678642869,-490.0,0.00019178,2]
[365448054,1749678642879,-490.0,0.00019178,2]
[365448056,1749678642888,-490.0,0.00019178,2]
[365448058,1749678642901,-490.0,0.00019178,2]
[365448060,1749678642918,-490.0,0.00019178,2]
[365448062,1749678642927,-490.0,0.00019178,2]
[365448064,1749678642936,-480.0,0.00019178,2]
[365448066,1749678642945,-490.0,0.00019178,2]
[365448068,1749678642954,-480.0,0.00019178,2]
[365448070,1749678642963,-688.74,0.00019178,2]
[365448072,1749678642972,-490.0,0.00019178,2]
[365448074,1749678642981,-547.91485185,0.00019178,2]
[365448076,1749678642991,-490.0,0.00019178,2]
[365448078,1749678642999,-490.0,0.00019178,2]
[365448080,1749678643008,-490.0,0.00019178,2]
[365448082,1749678643017,-490.0,0.00019178,2]
[365448084,1749678643027,-490.0,0.00019178,2]
[365448086,1749678643036,-490.0,0.00019178,2]
[365448088,1749678643045,-490.0,0.00019178,2]
[365448090,1749678643054,-610.89471364,0.00019178,2]
[365448092,1749678643064,-490.0,0.00019178,2]
[365448094,1749678643073,-490.0,0.00019178,2]
[365448096,1749678643082,-490.0,0.00019178,2]
[365448125,1749678643309,-490.0,0.00019178,2]
[365448127,1749678643319,-490.0,0.00019178,2]
[365448129,1749678643329,-490.0,0.00019178,2]
[365448131,1749678643338,-613.51,0.00019178,2]
[365448134,1749678643347,-480.0,0.00019178,2]
[365448136,1749678643356,-490.0,0.00019178,2]
[365448139,1749678643366,-490.0,0.00019178,2]
[365448142,1749678643375,-490.0,0.00019178,2]
[365448144,1749678643390,-348.56889125,0.00019178,2]
[365448147,1749678643399,-480.0,0.00019178,2]
[365448150,1749678643408,-480.0,0.00019178,2]
[365448154,1749678643417,-480.0,0.00019178,2]
[365448156,1749678643426,-490.0,0.00019178,2]
[365448158,1749678643435,-490.0,0.00019178,2]
[365448161,1749678643444,-490.0,0.00019178,2]
[365448163,1749678643458,-490.0,0.00019178,2]
[365448165,1749678643468,-490.0,0.00019178,2]
[365448167,1749678643480,-490.0,0.00019178,2]
[365448169,1749678643489,-480.0,0.00019178,2]
[365448172,1749678643499,-490.0,0.00019178,2]
[365448175,1749678643508,-490.0,0.00019178,2]
[365448178,1749678643517,-470.0,0.00019178,2]
[365448180,1749678643526,-490.0,0.00019178,2]
[365448182,1749678643536,-490.0,0.00019178,2]
[365448184,1749678643545,-443.35870455,0.00019178,2]
[365448186,1749678643554,-420.0,0.00019178,2]
[365448188,1749678643564,-490.0,0.00019178,2]
[365448190,1749678643573,-480.0,0.00019178,2]
[365448192,1749678643581,-290.0,0.00019178,2]
[365448194,1749678643590,-490.0,0.00019178,2]
[365448196,1749678643599,-480.0,0.00019178,2]
[365448198,1749678643608,-480.0,0.00019178,2]
[365448199,1749678643618,-490.0,0.00019178,2]
[365448201,1749678643627,-490.0,0.00019178,2]
[365448203,1749678643637,-490.0,0.00019178,2]
[365448205,1749678643646,-410.0,0.00019178,2]
[365448207,1749678643656,-490.0,0.00019178,2]
[365448209,1749678643665,-480.0,0.00019178,2]
[365448211,1749678643674,-490.0,0.00019178,2]
[365448213,1749678643684,-490.0,0.00019178,2]
[365448215,1749678643694,-490.0,0.00019178,2]
[365448216,1749678643703,-490.0,0.00019178,2]
[365448218,1749678643712,-480.0,0.00019178,2]
[365448220,1749678643722,-490.0,0.00019178,2]
[365448221,1749678643731,-480.0,0.00019178,2]
[365448223,1749678643741,-490.0,0.00019178,2]
[365448225,1749678643749,-490.0,0.00019178,2]
[365448227,1749678643759,-490.0,0.00019178,2]
[365448229,1749678643768,-480.0,0.00019178,2]
[365448231,1749678643777,-490.0,0.00019178,2]
[365448232,1749678643787,-480.0,0.00019178,2]
[365448234,1749678643796,-490.0,0.00019178,2]
[365448236,1749678643805,-490.0,0.00019178,2]
[365448238,1749678643814,-490.0,0.00019178,2]
[365448239,1749678643824,-480.0,0.00019178,2]
[365448241,1749678643833,-490.0,0.00019178,2]
[365448243,1749678643842,-480.0,0.00019178,2]
[365448245,1749678643851,-490.0,0.00019178,2]
[365448247,1749678643859,-490.0,0.00019178,2]
[365448248,1749678643868,-490.0,0.00019178,2]
[365448250,1749678643877,-490.0,0.00019178,2]
[365448252,1749678643886,-490.0,0.00019178,2]
[365448254,1749678643895,-490.0,0.00019178,2]
[365448255,1749678643903,-490.0,0.00019178,2]
[365448257,1749678643912,-755.28,0.00019178,2]
[365448259,1749678643922,-490.0,0.00019178,2]
[365448261,1749678643931,-490.0,0.00019178,2]
[365448263,1749678643940,-490.0,0.00019178,2]
[365448264,1749678643949,-490.0,0.00019178,2]
[365448266,1749678643957,-500.0,0.00019178,2]
[365448268,1749678643967,-490.0,0.00019178,2]
[365448270,1749678643975,-480.0,0.00019178,2]
[365448271,1749678643985,-490.0,0.00019178,2]
[365448273,1749678643994,-480.0,0.00019178,2]
[365448275,1749678644003,-513.74,0.00019178,2]
[365448277,1749678644012,-490.0,0.00019178,2]
[365448279,1749678644021,-490.0,0.00019178,2]
[365448281,1749678644031,-490.0,0.00019178,2]
[365448282,1749678644040,-490.0,0.00019178,2]
[365448284,1749678644049,-480.0,0.00019178,2]
[365448286,1749678644058,-490.0,0.00019178,2]
[365448288,1749678644066,-490.0,0.00019178,2]
[365448290,1749678644075,-490.0,0.00019178,2]
[365448291,1749678644084,-480.0,0.00019178,2]
[365448293,1749678644093,-490.0,0.00019178,2]
[365448295,1749678644102,-199.79262427,0.00019178,2]
[365448297,1749678644111,-490.0,0.00019178,2]
[365448298,1749678644120,-490.0,0.00019178,2]
[365448300,1749678644129,-490.0,0.00019178,2]
[365448302,1749678644138,-777.49,0.00019178,2]
[365448304,1749678644147,-480.0,0.00019178,2]
[365448306,1749678644156,-490.0,0.00019178,2]
[365448308,1749678644165,-490.0,0.00019178,2]
[365448309,1749678644174,-490.0,0.00019178,2]
[365448311,1749678644182,-490.0,0.00019178,2]
[365448313,1749678644191,-490.0,0.00019178,2]
[365448315,1749678644200,-480.0,0.00019178,2]
[365448317,1749678644209,-394.57550214,0.00019178,2]
[365448319,1749678644219,-490.0,0.00019178,2]
[365448320,1749678644228,-565.5,0.00019178,2]
[365448322,1749678644237,-490.0,0.00019178,2]
[365448324,1749678644246,-490.0,0.00019178,2]
[365448326,1749678644255,-480.0,0.00019178,2]
[365448328,1749678644264,-490.0,0.00019178,2]
[365448330,1749678644273,-490.0,0.00019178,2]
[365448332,1749678644281,-423.09131802,0.00019178,2]
[365448333,1749678644290,-553.19,0.00019178,2]
[365448335,1749678644300,-480.0,0.00019178,2]
[365448337,1749678644310,-490.0,0.00019178,2]
[365448339,1749678644319,-490.0,0.00019178,2]
[365448341,1749678644328,-490.0,0.00019178,2]
[365448342,1749678644336,-480.0,0.00019178,2]
[365448343,1749678644345,-490.0,0.00019178,2]
[365448344,1749678644354,-490.0,0.00019178,2]
[365448345,1749678644363,-543.0,0.00019178,2]
[365448346,1749678644379,-490.0,0.00019178,2]
[365448347,1749678644388,-490.0,0.00019178,2]
[365448348,1749678644397,-490.0,0.00019178,2]
[365448349,1749678644406,-490.0,0.00019178,2]
[365448350,1749678644415,-490.0,0.00019178,2]
[365448351,1749678644423,-490.0,0.00019178,2]
[365448352,1749678644432,-564.54,0.00019178,2]
[365448353,1749678644441,-490.0,0.00019178,2]
[365448354,1749678644449,-480.0,0.00019178,2]
[365448355,1749678644463,-490.0,0.00019178,2]
[365448356,1749678644472,-490.0,0.00019178,2]
[365448357,1749678644482,-490.0,0.00019178,2]
[365448359,1749678644491,-490.0,0.00019178,2]
[365448360,1749678644501,-490.0,0.00019178,2]
[365448362,1749678644510,-490.0,0.00019178,2]
[365448363,1749678644519,-460.0,0.00019178,2]
[365448364,1749678644530,-490.0,0.00019178,2]
[365448365,1749678644548,-490.0,0.00019178,2]
[365448366,1749678644564,-480.0,0.00019178,2]
[365448367,1749678644587,-490.0,0.00019178,2]
[365448368,1749678644598,-490.0,0.00019178,2]
[365448369,1749678644609,-490.0,0.00019178,2]
[365448370,1749678644618,-480.0,0.00019178,2]
[365448371,1749678644629,-490.0,0.00019178,2]
[365448372,1749678644639,-490.0,0.00019178,2]
[365448373,1749678644649,-490.0,0.00019178,2]
[365448374,1749678644659,-490.0,0.00019178,2]
[365448375,1749678644668,-490.0,0.00019178,2]
[365448376,1749678644678,-490.0,0.00019178,2]
[365448377,1749678644687,-538.77048822,0.00019178,2]
[365448378,1749678644698,-480.0,0.00019178,2]
[365448379,1749678644708,-490.0,0.00019178,2]
[365448380,1749678644720,-426.66436769,0.00019178,2]
[365448381,1749678644731,-490.0,0.00019178,2]
[365448382,1749678644742,-490.0,0.00019178,2]
[365448383,1749678644753,-300.0,0.00019178,2]
[365448384,1749678644763,-553.84683566,0.00019178,2]
[365448385,1749678644772,-490.0,0.00019178,2]
[365448386,1749678644781,-490.0,0.00019178,2]
[365448387,1749678644790,-490.0,0.00019178,2]
[365448388,1749678644800,-490.0,0.00019178,2]
[365448389,1749678644810,-490.0,0.00019178,2]
[365448390,1749678644819,-490.0,0.00019178,2]
[365448391,1749678644828,-490.0,0.00019178,2]
[365448392,1749678644837,-490.0,0.00019178,2]
[365448393,1749678644847,-490.0,0.00019178,2]
[365448394,1749678644856,-490.0,0.00019178,2]
[365448395,1749678644865,-490.0,0.00019178,2]
[365448396,1749678644874,-490.0,0.00019178,2]
[365448397,1749678644883,-490.0,0.00019178,2]
[365448398,1749678644893,-480.0,0.00019178,2]
[365448399,1749678644903,-490.0,0.00019178,2]
[365448400,1749678644912,-827.92,0.00019178,2]
[365448401,1749678644921,-490.0,0.00019178,2]
[365448402,1749678644930,-167.76,0.00019178,2]
[365448403,1749678644939,-480.0,0.00019178,2]
[365448404,1749678644949,-490.0,0.00019178,2]
[365448405,1749678644958,-674.37,0.00019178,2]
[365448406,1749678644972,-489.99704302,0.00019178,2]
[365448407,1749678644991,-490.0,0.00019178,2]
[365448408,1749678645001,-538.99588997,0.00019178,2]
[365448409,1749678645011,-490.0,0.00019178,2]
[365448410,1749678645021,-490.0,0.00019178,2]
[365448411,1749678645030,-867.52,0.00019178,2]
[365448412,1749678645039,-480.0,0.00019178,2]
[365448413,1749678645049,-490.0,0.00019178,2]
[365448414,1749678645058,-490.0,0.00019178,2]
[365448415,1749678645068,-582.46943949,0.00019178,2]
[365448416,1749678645077,-490.0,0.00019178,2]
[365448417,1749678645087,-636.57,0.00019178,2]
[365448418,1749678645096,-490.0,0.00019178,2]
[365448419,1749678645105,-490.0,0.00019178,2]
[365448420,1749678645115,-480.0,0.00019178,2]
[365448421,1749678645125,-420.0,0.00019178,2]
[365448422,1749678645134,-490.0,0.00019178,2]
[365448423,1749678645144,-490.0,0.00019178,2]
[365448424,1749678645154,-490.0,0.00019178,2]
[365448425,1749678645163,-490.0,0.00019178,2]